[Event "Titled Tuesday Blitz August 08 Early 2023"]
[White "Rendle, Thomas E"]
[Black "Gholami Orimi, Mahdi"]
[WhiteFideId "408760"]
[BlackFideId "12558486"]
[WhiteElo "2715"]
[BlackElo "2900"]
[Result "0-1"]
[Round "6"]
[TimeControl "180+1"]
[Date "2023.08.08"]
[WhiteClock "0:00:04"]
[BlackClock "0:01:08"]
[Board "20"]

1. e4 {[%clk 0:03:00]}  c5 {[%clk 0:02:59]} 2. Nc3 {[%clk 0:03:00]}  Nc6 {[%clk 0:02:58]} 3. Bb5 {[%clk 0:02:59]}  Nd4 {[%clk 0:02:58]} 4. Nf3 {[%clk 0:02:59]}  g6 {[%clk 0:02:57]} 5. O-O {[%clk 0:02:55]}  a6 {[%clk 0:02:57]} 6. Bd3 {[%clk 0:02:54]}  Bg7 {[%clk 0:02:57]} 7. Nxd4 {[%clk 0:02:49]}  cxd4 {[%clk 0:02:58]} 8. Ne2 {[%clk 0:02:50]}  e6 {[%clk 0:02:48]} 9. b3 {[%clk 0:02:42]}  Ne7 {[%clk 0:02:47]} 10. Bb2 {[%clk 0:02:34]}  Nc6 {[%clk 0:02:36]} 11. c3 {[%clk 0:02:31]}  dxc3 {[%clk 0:02:35]} 12. dxc3 {[%clk 0:02:30]}  O-O {[%clk 0:02:35]} 13. Qd2 {[%clk 0:02:25]}  d5 {[%clk 0:02:35]} 14. exd5 {[%clk 0:02:23]}  exd5 {[%clk 0:02:36]} 15. Rad1 {[%clk 0:02:19]}  Bg4 {[%clk 0:02:35]} 16. f3 {[%clk 0:02:17]}  Qb6+ {[%clk 0:02:33]} 17. Kh1 {[%clk 0:02:16]}  Be6 {[%clk 0:02:33]} 18. Nd4 {[%clk 0:02:05]}  Nxd4 {[%clk 0:02:32]} 19. cxd4 {[%clk 0:02:06]}  Bxd4 {[%clk 0:02:13]} 20. f4 {[%clk 0:01:38]}  Bxb2 {[%clk 0:02:01]} 21. Qxb2 {[%clk 0:01:37]}  f5 {[%clk 0:02:02]} 22. Rfe1 {[%clk 0:01:34]}  Bf7 {[%clk 0:02:00]} 23. Be2 {[%clk 0:01:27]}  Rfe8 {[%clk 0:01:59]} 24. Bf3 {[%clk 0:01:27]}  Rxe1+ {[%clk 0:01:59]} 25. Rxe1 {[%clk 0:01:28]}  d4 {[%clk 0:01:56]} 26. h3 {[%clk 0:01:23]}  Re8 {[%clk 0:01:54]} 27. Rd1 {[%clk 0:01:18]}  Rd8 {[%clk 0:01:54]} 28. Qa3 {[%clk 0:01:12]}  Qc7 {[%clk 0:01:51]} 29. Qb4 {[%clk 0:01:09]}  Qxf4 {[%clk 0:01:48]} 30. Qxb7 {[%clk 0:01:10]}  d3 {[%clk 0:01:38]} 31. Qxa6 {[%clk 0:01:02]}  d2 {[%clk 0:01:38]} 32. Qb5 {[%clk 0:00:47]}  g5 {[%clk 0:01:30]} 33. Be2 {[%clk 0:00:41]}  Qe4 {[%clk 0:01:26]} 34. Bf3 {[%clk 0:00:30]}  Qf4 {[%clk 0:01:10]} 35. Be2 {[%clk 0:00:28]}  Re8 {[%clk 0:01:09]} 36. a4 {[%clk 0:00:17]}  Re5 {[%clk 0:01:09]} 37. Qa6 {[%clk 0:00:11]}  g4 {[%clk 0:01:08]} 38. Rf1 {[%clk 0:00:06]}  Qxf1+ {[%clk 0:01:07]} 39. Bxf1 {[%clk 0:00:04]}  d1=Q {[%clk 0:01:08]} 0-1


[Site "https://www.chess.com"]

[Event "Titled Tuesday Blitz August 08 Early 2023"]
[White "Seemann, Jakub"]
[Black "Baskakov, Egor"]
[WhiteFideId "21874697"]
[BlackFideId "24197866"]
[WhiteElo "2687"]
[BlackElo "2878"]
[Result "0-1"]
[Round "6"]
[TimeControl "180+1"]
[Date "2023.08.08"]
[WhiteClock "0:00:00"]
[BlackClock "0:00:45"]
[Board "22"]

1. Nf3 {[%clk 0:03:00]}  Nf6 {[%clk 0:02:59]} 2. g3 {[%clk 0:03:01]}  e6 {[%clk 0:02:59]} 3. Bg2 {[%clk 0:03:01]}  d5 {[%clk 0:03:00]} 4. O-O {[%clk 0:03:01]}  Be7 {[%clk 0:03:00]} 5. c4 {[%clk 0:03:01]}  O-O {[%clk 0:03:01]} 6. b3 {[%clk 0:03:01]}  b6 {[%clk 0:03:01]} 7. Bb2 {[%clk 0:03:01]}  Bb7 {[%clk 0:03:01]} 8. cxd5 {[%clk 0:03:01]}  Bxd5 {[%clk 0:03:01]} 9. Nc3 {[%clk 0:03:00]}  Bb7 {[%clk 0:03:01]} 10. d3 {[%clk 0:02:59]}  c5 {[%clk 0:03:00]} 11. Qc2 {[%clk 0:02:53]}  Nc6 {[%clk 0:03:00]} 12. a3 {[%clk 0:02:49]}  Rc8 {[%clk 0:03:00]} 13. e3 {[%clk 0:02:36]}  Nd4 {[%clk 0:02:52]} 14. exd4 {[%clk 0:02:19]}  Bxf3 {[%clk 0:02:36]} 15. Bxf3 {[%clk 0:02:19]}  cxd4 {[%clk 0:02:37]} 16. Qd2 {[%clk 0:02:16]}  dxc3 {[%clk 0:02:37]} 17. Bxc3 {[%clk 0:02:16]}  Nd5 {[%clk 0:02:34]} 18. Bb2 {[%clk 0:02:17]}  Bf6 {[%clk 0:02:26]} 19. d4 {[%clk 0:02:15]}  Qd7 {[%clk 0:02:20]} 20. Rac1 {[%clk 0:02:14]}  Qb5 {[%clk 0:02:19]} 21. b4 {[%clk 0:02:05]}  h6 {[%clk 0:02:18]} 22. Kg2 {[%clk 0:02:03]}  Bg5 {[%clk 0:02:17]} 23. Qd1 {[%clk 0:01:38]}  Bxc1 {[%clk 0:02:15]} 24. Bxc1 {[%clk 0:01:39]}  Rfd8 {[%clk 0:02:09]} 25. h4 {[%clk 0:01:31]}  Qc4 {[%clk 0:02:04]} 26. Qa4 {[%clk 0:01:16]}  a5 {[%clk 0:01:59]} 27. h5 {[%clk 0:01:05]}  axb4 {[%clk 0:01:57]} 28. axb4 {[%clk 0:01:05]}  Qxd4 {[%clk 0:01:44]} 29. Rd1 {[%clk 0:00:57]}  Qxb4 {[%clk 0:01:36]} 30. Qa7 {[%clk 0:00:54]}  Qb3 {[%clk 0:01:22]} 31. Qb7 {[%clk 0:00:39]}  Qc4 {[%clk 0:01:13]} 32. Bb2 {[%clk 0:00:29]}  Rc7 {[%clk 0:00:58]} 33. Rxd5 {[%clk 0:00:10]}  Rxd5 {[%clk 0:00:56]} 34. Qb8+ {[%clk 0:00:03]}  Rc8 {[%clk 0:00:55]} 35. Qb7 {[%clk 0:00:02]}  Rd2 {[%clk 0:00:50]} 36. Be5 {[%clk 0:00:02]}  Qc5 {[%clk 0:00:50]} 37. Qe4 {[%clk 0:00:02]}  Qxf2+ {[%clk 0:00:48]} 38. Kh3 {[%clk 0:00:02]}  Qf1+ {[%clk 0:00:46]} 39. Kh4 {[%clk 0:00:00]}  Rc4 {[%clk 0:00:45]} 0-1


[Site "https://www.chess.com"]

[Event "Titled Tuesday Blitz August 08 Early 2023"]
[White "Bernadskiy, Vitaliy"]
[Black "Yaran, Siar"]
[WhiteFideId "14100371"]
[BlackFideId "6323006"]
[WhiteElo "2873"]
[BlackElo "2677"]
[Result "1/2-1/2"]
[Round "6"]
[TimeControl "180+1"]
[Date "2023.08.08"]
[WhiteClock "0:00:05"]
[BlackClock "0:00:05"]
[Board "23"]

1. d4 {[%clk 0:03:00]}  Nf6 {[%clk 0:02:35]} 2. c4 {[%clk 0:02:58]}  e6 {[%clk 0:02:36]} 3. g3 {[%clk 0:02:57]}  d5 {[%clk 0:02:36]} 4. Bg2 {[%clk 0:02:57]}  Be7 {[%clk 0:02:36]} 5. Nf3 {[%clk 0:02:54]}  O-O {[%clk 0:02:36]} 6. O-O {[%clk 0:02:54]}  dxc4 {[%clk 0:02:36]} 7. Qc2 {[%clk 0:02:54]}  a6 {[%clk 0:02:35]} 8. a4 {[%clk 0:02:54]}  Bd7 {[%clk 0:02:35]} 9. Qxc4 {[%clk 0:02:53]}  Bc6 {[%clk 0:02:34]} 10. Bg5 {[%clk 0:02:54]}  Bd5 {[%clk 0:02:34]} 11. Qd3 {[%clk 0:02:51]}  Be4 {[%clk 0:02:34]} 12. Qb3 {[%clk 0:02:51]}  Nc6 {[%clk 0:02:19]} 13. e3 {[%clk 0:02:41]}  Na5 {[%clk 0:01:18]} 14. Qd1 {[%clk 0:02:26]}  c5 {[%clk 0:01:09]} 15. Nbd2 {[%clk 0:02:24]}  Bc6 {[%clk 0:00:54]} 16. dxc5 {[%clk 0:02:15]}  Bxc5 {[%clk 0:00:52]} 17. Qc2 {[%clk 0:02:08]}  Be7 {[%clk 0:00:45]} 18. Rfd1 {[%clk 0:02:06]}  Rc8 {[%clk 0:00:37]} 19. Qb1 {[%clk 0:01:52]}  Qb6 {[%clk 0:00:36]} 20. Bf4 {[%clk 0:01:26]}  Rfd8 {[%clk 0:00:31]} 21. Be5 {[%clk 0:01:26]}  Nb3 {[%clk 0:00:30]} 22. Nxb3 {[%clk 0:01:17]}  Qxb3 {[%clk 0:00:30]} 23. Nd4 {[%clk 0:01:09]}  Qb6 {[%clk 0:00:29]} 24. a5 {[%clk 0:01:02]}  Qc5 {[%clk 0:00:25]} 25. Nxc6 {[%clk 0:01:02]}  bxc6 {[%clk 0:00:22]} 26. Rxd8+ {[%clk 0:01:02]}  Rxd8 {[%clk 0:00:21]} 27. Bd4 {[%clk 0:01:02]}  Qb5 {[%clk 0:00:20]} 28. Bf1 {[%clk 0:00:57]}  Qb7 {[%clk 0:00:19]} 29. Bb6 {[%clk 0:00:34]}  Rd7 {[%clk 0:00:16]} 30. e4 {[%clk 0:00:33]}  Bd8 {[%clk 0:00:15]} 31. Be3 {[%clk 0:00:27]}  c5 {[%clk 0:00:13]} 32. f3 {[%clk 0:00:22]}  Be7 {[%clk 0:00:09]} 33. Qc2 {[%clk 0:00:22]}  h5 {[%clk 0:00:08]} 34. b3 {[%clk 0:00:19]}  h4 {[%clk 0:00:08]} 35. Rd1 {[%clk 0:00:17]}  Rxd1 {[%clk 0:00:07]} 36. Qxd1 {[%clk 0:00:18]}  Qb4 {[%clk 0:00:07]} 37. Qd2 {[%clk 0:00:12]}  Qb8 {[%clk 0:00:06]} 38. Kf2 {[%clk 0:00:10]}  hxg3+ {[%clk 0:00:06]} 39. hxg3 {[%clk 0:00:11]}  Nh5 {[%clk 0:00:05]} 40. f4 {[%clk 0:00:11]}  Nf6 {[%clk 0:00:06]} 41. Kf3 {[%clk 0:00:11]}  Qb7 {[%clk 0:00:06]} 42. Qd3 {[%clk 0:00:11]}  Ne8 {[%clk 0:00:04]} 43. Qxa6 {[%clk 0:00:11]}  Qxb3 {[%clk 0:00:04]} 44. Qc8 {[%clk 0:00:08]}  Kf8 {[%clk 0:00:03]} 45. a6 {[%clk 0:00:09]}  Qd1+ {[%clk 0:00:03]} 46. Be2 {[%clk 0:00:09]}  Qh1+ {[%clk 0:00:03]} 47. Kf2 {[%clk 0:00:08]}  Qh2+ {[%clk 0:00:01]} 48. Ke1 {[%clk 0:00:08]}  Qxg3+ {[%clk 0:00:02]} 49. Kd2 {[%clk 0:00:08]}  c4 {[%clk 0:00:03]} 50. a7 {[%clk 0:00:07]}  Bb4+ {[%clk 0:00:03]} 51. Kc2 {[%clk 0:00:06]}  Qxe3 {[%clk 0:00:04]} 52. Qxe8+ {[%clk 0:00:06]}  Kxe8 {[%clk 0:00:04]} 53. a8=Q+ {[%clk 0:00:06]}  Ke7 {[%clk 0:00:05]} 54. Qb7+ {[%clk 0:00:06]}  Kf6 {[%clk 0:00:04]} 55. e5+ {[%clk 0:00:06]}  Kg6 {[%clk 0:00:04]} 56. Bh5+ {[%clk 0:00:03]}  Kxh5 {[%clk 0:00:03]} 57. Qxf7+ {[%clk 0:00:04]}  Kh6 {[%clk 0:00:04]} 58. Qxe6+ {[%clk 0:00:04]}  g6 {[%clk 0:00:03]} 59. Qxc4 {[%clk 0:00:03]}  Qd2+ {[%clk 0:00:02]} 60. Kb3 {[%clk 0:00:03]}  Be7 {[%clk 0:00:03]} 61. Qf7 {[%clk 0:00:02]}  Qb4+ {[%clk 0:00:03]} 62. Kc2 {[%clk 0:00:03]}  Qc5+ {[%clk 0:00:03]} 63. Kd3 {[%clk 0:00:03]}  Qb5+ {[%clk 0:00:02]} 64. Ke4 {[%clk 0:00:04]}  Qc6+ {[%clk 0:00:03]} 65. Ke3 {[%clk 0:00:04]}  Bc5+ {[%clk 0:00:03]} 66. Kd3 {[%clk 0:00:04]}  Qb5+ {[%clk 0:00:03]} 67. Ke4 {[%clk 0:00:05]}  Qb1+ {[%clk 0:00:03]} 68. Kf3 {[%clk 0:00:05]}  Qd3+ {[%clk 0:00:03]} 69. Kg4 {[%clk 0:00:04]}  Qe2+ {[%clk 0:00:04]} 70. Kh3 {[%clk 0:00:04]}  Bf2 {[%clk 0:00:04]} 71. Qf8+ {[%clk 0:00:04]}  Kh7 {[%clk 0:00:04]} 72. Qf7+ {[%clk 0:00:04]}  Kh6 {[%clk 0:00:04]} 73. Qf8+ {[%clk 0:00:04]}  Kh7 {[%clk 0:00:04]} 74. Qf7+ {[%clk 0:00:05]}  Kh6 {[%clk 0:00:05]} 1/2-1/2


[Site "https://www.chess.com"]

[Event "Titled Tuesday Blitz August 08 Early 2023"]
[White "Yeletsky, Ivan"]
[Black "Timerkhanov, Alexander"]
[WhiteFideId "24180327"]
[BlackFideId "24177938"]
[WhiteElo "2864"]
[BlackElo "2663"]
[Result "1/2-1/2"]
[Round "6"]
[TimeControl "180+1"]
[Date "2023.08.08"]
[WhiteClock "0:00:04"]
[BlackClock "0:00:11"]
[Board "24"]

1. e4 {[%clk 0:03:00]}  c5 {[%clk 0:02:59]} 2. Nf3 {[%clk 0:03:00]}  a6 {[%clk 0:03:00]} 3. g3 {[%clk 0:03:00]}  b5 {[%clk 0:02:59]} 4. d4 {[%clk 0:03:00]}  cxd4 {[%clk 0:02:58]} 5. Nxd4 {[%clk 0:03:01]}  Bb7 {[%clk 0:02:58]} 6. Bg2 {[%clk 0:03:01]}  e6 {[%clk 0:02:58]} 7. O-O {[%clk 0:02:59]}  d6 {[%clk 0:02:56]} 8. a4 {[%clk 0:02:58]}  bxa4 {[%clk 0:02:53]} 9. c4 {[%clk 0:02:57]}  Nf6 {[%clk 0:02:50]} 10. Nc3 {[%clk 0:02:56]}  Qc7 {[%clk 0:02:46]} 11. Rxa4 {[%clk 0:02:44]}  Be7 {[%clk 0:02:45]} 12. b3 {[%clk 0:02:42]}  O-O {[%clk 0:02:44]} 13. g4 {[%clk 0:02:35]}  Nc6 {[%clk 0:02:42]} 14. g5 {[%clk 0:02:35]}  Nd7 {[%clk 0:02:42]} 15. Be3 {[%clk 0:02:30]}  Nxd4 {[%clk 0:02:30]} 16. Qxd4 {[%clk 0:02:30]}  Nc5 {[%clk 0:02:17]} 17. Ra3 {[%clk 0:02:29]}  Rfc8 {[%clk 0:02:12]} 18. h4 {[%clk 0:02:24]}  Bf8 {[%clk 0:02:08]} 19. Rc1 {[%clk 0:02:14]}  g6 {[%clk 0:02:00]} 20. Qd2 {[%clk 0:02:12]}  Bg7 {[%clk 0:01:57]} 21. b4 {[%clk 0:02:04]}  Nd7 {[%clk 0:01:57]} 22. Ne2 {[%clk 0:01:53]}  Ne5 {[%clk 0:01:35]} 23. c5 {[%clk 0:01:52]}  dxc5 {[%clk 0:01:34]} 24. Bxc5 {[%clk 0:01:45]}  Rd8 {[%clk 0:01:30]} 25. Qe3 {[%clk 0:01:42]}  Qd7 {[%clk 0:01:27]} 26. Raa1 {[%clk 0:01:13]}  Rac8 {[%clk 0:01:27]} 27. Rab1 {[%clk 0:01:08]}  Qb5 {[%clk 0:01:19]} 28. Be7 {[%clk 0:01:05]}  Re8 {[%clk 0:01:13]} 29. Rxc8 {[%clk 0:01:03]}  Rxc8 {[%clk 0:01:12]} 30. Rd1 {[%clk 0:01:03]}  Ng4 {[%clk 0:01:06]} 31. Qd2 {[%clk 0:00:57]}  h6 {[%clk 0:00:52]} 32. Bh3 {[%clk 0:00:35]}  h5 {[%clk 0:00:50]} 33. Bg2 {[%clk 0:00:35]}  Kh7 {[%clk 0:00:43]} 34. f3 {[%clk 0:00:26]}  Ne5 {[%clk 0:00:42]} 35. Bf6 {[%clk 0:00:26]}  Nc4 {[%clk 0:00:40]} 36. Qd7 {[%clk 0:00:22]}  Qb6+ {[%clk 0:00:39]} 37. Kh2 {[%clk 0:00:19]}  Rc7 {[%clk 0:00:39]} 38. Qe8 {[%clk 0:00:19]}  Bxf6 {[%clk 0:00:19]} 39. gxf6 {[%clk 0:00:20]}  Qf2 {[%clk 0:00:19]} 40. Ng3 {[%clk 0:00:11]}  Ne3 {[%clk 0:00:19]} 41. Rg1 {[%clk 0:00:12]}  Nxg2 {[%clk 0:00:07]} 42. Rxg2 {[%clk 0:00:12]}  Qxf3 {[%clk 0:00:08]} 43. Qd8 {[%clk 0:00:03]}  Bxe4 {[%clk 0:00:06]} 44. Nxe4 {[%clk 0:00:02]}  Qxe4 {[%clk 0:00:07]} 45. Qxc7 {[%clk 0:00:02]}  Qxh4+ {[%clk 0:00:07]} 46. Kg1 {[%clk 0:00:03]}  Qe1+ {[%clk 0:00:08]} 47. Kh2 {[%clk 0:00:03]}  Qh4+ {[%clk 0:00:09]} 48. Kg1 {[%clk 0:00:04]}  Qe1+ {[%clk 0:00:10]} 49. Kh2 {[%clk 0:00:04]}  Qh4+ {[%clk 0:00:11]} 1/2-1/2


[Site "https://www.chess.com"]

[Event "Titled Tuesday Blitz August 08 Early 2023"]
[White "Timofeev, Artyom"]
[Black "Sakun, Volodymyr"]
[WhiteFideId "4140419"]
[BlackFideId "14114062"]
[WhiteElo "2839"]
[BlackElo "2652"]
[Result "1-0"]
[Round "6"]
[TimeControl "180+1"]
[Date "2023.08.08"]
[WhiteClock "0:00:22"]
[BlackClock "0:00:00"]
[Board "26"]

1. c4 {[%clk 0:03:00]}  e5 {[%clk 0:02:58]} 2. e3 {[%clk 0:02:58]}  Nf6 {[%clk 0:02:58]} 3. Nc3 {[%clk 0:02:58]}  d5 {[%clk 0:02:54]} 4. cxd5 {[%clk 0:02:57]}  Nxd5 {[%clk 0:02:55]} 5. Nf3 {[%clk 0:02:58]}  Nxc3 {[%clk 0:02:35]} 6. bxc3 {[%clk 0:02:57]}  Bd6 {[%clk 0:02:35]} 7. d4 {[%clk 0:02:57]}  Nd7 {[%clk 0:02:35]} 8. Bd3 {[%clk 0:02:53]}  Qe7 {[%clk 0:02:35]} 9. Qc2 {[%clk 0:02:50]}  h6 {[%clk 0:02:30]} 10. O-O {[%clk 0:02:49]}  O-O {[%clk 0:02:30]} 11. c4 {[%clk 0:02:48]}  b6 {[%clk 0:02:29]} 12. Be4 {[%clk 0:02:40]}  Rb8 {[%clk 0:02:29]} 13. Bc6 {[%clk 0:02:40]}  Bb7 {[%clk 0:02:16]} 14. Bxb7 {[%clk 0:02:39]}  Rxb7 {[%clk 0:02:17]} 15. Bb2 {[%clk 0:02:38]}  e4 {[%clk 0:02:13]} 16. Nd2 {[%clk 0:02:38]}  Re8 {[%clk 0:02:13]} 17. a4 {[%clk 0:02:28]}  Qh4 {[%clk 0:02:07]} 18. h3 {[%clk 0:02:25]}  Bb4 {[%clk 0:01:28]} 19. Bc3 {[%clk 0:02:20]}  Bxc3 {[%clk 0:01:22]} 20. Qxc3 {[%clk 0:02:20]}  Re6 {[%clk 0:01:19]} 21. a5 {[%clk 0:02:01]}  Rg6 {[%clk 0:01:15]} 22. Kh1 {[%clk 0:02:01]}  Nf6 {[%clk 0:01:04]} 23. axb6 {[%clk 0:02:01]}  axb6 {[%clk 0:01:01]} 24. Ra8+ {[%clk 0:01:59]}  Kh7 {[%clk 0:01:01]} 25. d5 {[%clk 0:01:58]}  b5 {[%clk 0:00:53]} 26. c5 {[%clk 0:01:30]}  Nxd5 {[%clk 0:00:50]} 27. Qe5 {[%clk 0:01:28]}  Rg5 {[%clk 0:00:41]} 28. Qxe4+ {[%clk 0:01:25]}  Qxe4 {[%clk 0:00:40]} 29. Nxe4 {[%clk 0:01:25]}  Re5 {[%clk 0:00:41]} 30. Nd2 {[%clk 0:01:21]}  Nb4 {[%clk 0:00:40]} 31. Nb3 {[%clk 0:01:16]}  Nd3 {[%clk 0:00:31]} 32. Na5 {[%clk 0:01:14]}  Nxc5 {[%clk 0:00:26]} 33. Nxb7 {[%clk 0:01:14]}  Nxb7 {[%clk 0:00:27]} 34. Ra7 {[%clk 0:01:13]}  Nc5 {[%clk 0:00:19]} 35. Rxc7 {[%clk 0:01:12]}  b4 {[%clk 0:00:19]} 36. Rb1 {[%clk 0:01:12]}  Nd3 {[%clk 0:00:17]} 37. Kg1 {[%clk 0:01:09]}  Rb5 {[%clk 0:00:14]} 38. Rxf7 {[%clk 0:00:56]}  b3 {[%clk 0:00:13]} 39. Rd7 {[%clk 0:00:54]}  Ne5 {[%clk 0:00:09]} 40. Rd4 {[%clk 0:00:53]}  Nc6 {[%clk 0:00:07]} 41. Rc4 {[%clk 0:00:52]}  Na5 {[%clk 0:00:07]} 42. Rc3 {[%clk 0:00:52]}  Kg6 {[%clk 0:00:06]} 43. g4 {[%clk 0:00:50]}  Kf6 {[%clk 0:00:05]} 44. f4 {[%clk 0:00:50]}  Ke6 {[%clk 0:00:05]} 45. Kf2 {[%clk 0:00:44]}  Rb4 {[%clk 0:00:05]} 46. Rc5 {[%clk 0:00:35]}  Nc4 {[%clk 0:00:04]} 47. Rxc4 {[%clk 0:00:35]}  Rxc4 {[%clk 0:00:05]} 48. Rxb3 {[%clk 0:00:35]}  Rc2+ {[%clk 0:00:05]} 49. Kg3 {[%clk 0:00:35]}  Kf6 {[%clk 0:00:05]} 50. Rb6+ {[%clk 0:00:33]}  Kf7 {[%clk 0:00:05]} 51. h4 {[%clk 0:00:33]}  Re2 {[%clk 0:00:05]} 52. Kf3 {[%clk 0:00:33]}  Rh2 {[%clk 0:00:05]} 53. h5 {[%clk 0:00:33]}  Rh3+ {[%clk 0:00:05]} 54. Ke4 {[%clk 0:00:30]}  Kg8 {[%clk 0:00:06]} 55. Re6 {[%clk 0:00:28]}  Kf7 {[%clk 0:00:05]} 56. Re5 {[%clk 0:00:28]}  Rg3 {[%clk 0:00:04]} 57. Kf5 {[%clk 0:00:28]}  Rf3 {[%clk 0:00:02]} 58. e4 {[%clk 0:00:24]}  Rf1 {[%clk 0:00:02]} 59. Ra5 {[%clk 0:00:24]}  Kg8 {[%clk 0:00:02]} 60. Ra7 {[%clk 0:00:22]}  Kh7 {[%clk 0:00:02]} 61. e5 {[%clk 0:00:22]}  Re1 {[%clk 0:00:02]} 62. Ke6 {[%clk 0:00:22]}  Rf1 {[%clk 0:00:02]} 63. f5 {[%clk 0:00:22]}  Rg1 {[%clk 0:00:02]} 64. f6 {[%clk 0:00:22]}  Rxg4 {[%clk 0:00:01]} 65. f7 {[%clk 0:00:22]}  Rf4 {[%clk 0:00:00]} 66. Ra8 {[%clk 0:00:22]} 1-0


[Site "https://www.chess.com"]

[Event "Titled Tuesday Blitz August 08 Early 2023"]
[White "Domingo Nunez, Ruben"]
[Black "Pakleza, Zbigniew"]
[WhiteFideId "22245570"]
[BlackFideId "1119290"]
[WhiteElo "2632"]
[BlackElo "2826"]
[Result "0-1"]
[Round "6"]
[TimeControl "180+1"]
[Date "2023.08.08"]
[WhiteClock "0:01:09"]
[BlackClock "0:00:33"]
[Board "28"]

1. Nf3 {[%clk 0:03:00]}  d5 {[%clk 0:02:58]} 2. b3 {[%clk 0:03:00]}  Nf6 {[%clk 0:02:58]} 3. Bb2 {[%clk 0:03:01]}  Bf5 {[%clk 0:02:58]} 4. e3 {[%clk 0:03:00]}  e6 {[%clk 0:02:59]} 5. Be2 {[%clk 0:03:00]}  h6 {[%clk 0:02:59]} 6. O-O {[%clk 0:03:01]}  Be7 {[%clk 0:02:58]} 7. c4 {[%clk 0:03:01]}  c6 {[%clk 0:02:58]} 8. Nc3 {[%clk 0:03:02]}  Nbd7 {[%clk 0:02:59]} 9. d4 {[%clk 0:03:02]}  O-O {[%clk 0:02:59]} 10. Rc1 {[%clk 0:03:02]}  Ne4 {[%clk 0:02:58]} 11. Bd3 {[%clk 0:03:02]}  Ndf6 {[%clk 0:02:56]} 12. Ne5 {[%clk 0:03:02]}  Bd6 {[%clk 0:02:55]} 13. f3 {[%clk 0:03:01]}  Nxc3 {[%clk 0:02:55]} 14. Rxc3 {[%clk 0:02:54]}  Re8 {[%clk 0:02:53]} 15. Bxf5 {[%clk 0:02:23]}  exf5 {[%clk 0:02:54]} 16. Qd3 {[%clk 0:02:24]}  Bxe5 {[%clk 0:02:16]} 17. dxe5 {[%clk 0:02:25]}  Rxe5 {[%clk 0:02:16]} 18. Rc2 {[%clk 0:02:25]}  Re6 {[%clk 0:02:15]} 19. Rd2 {[%clk 0:02:05]}  Qa5 {[%clk 0:01:44]} 20. Bxf6 {[%clk 0:01:31]}  Rxf6 {[%clk 0:01:44]} 21. cxd5 {[%clk 0:01:31]}  Rd8 {[%clk 0:01:38]} 22. e4 {[%clk 0:01:21]}  fxe4 {[%clk 0:01:39]} 23. fxe4 {[%clk 0:01:22]}  Rfd6 {[%clk 0:00:37]} 24. Qf3 {[%clk 0:01:09]}  Qxd2 {[%clk 0:00:33]} 0-1


[Site "https://www.chess.com"]

[Event "Titled Tuesday Blitz August 08 Early 2023"]
[White "LangesNasenhaar"]
[Black "Remizov, Yaroslav"]
[BlackFideId "34134015"]
[WhiteElo "2569"]
[BlackElo "2819"]
[Result "0-1"]
[Round "6"]
[TimeControl "180+1"]
[Date "2023.08.08"]
[WhiteClock "0:00:42"]
[BlackClock "0:01:49"]
[Board "30"]

1. d4 {[%clk 0:03:00]}  Nf6 {[%clk 0:02:59]} 2. Nc3 {[%clk 0:03:01]}  d6 {[%clk 0:02:58]} 3. e4 {[%clk 0:02:59]}  Nbd7 {[%clk 0:02:58]} 4. f4 {[%clk 0:02:57]}  e5 {[%clk 0:02:58]} 5. Nf3 {[%clk 0:02:56]}  exd4 {[%clk 0:02:57]} 6. Qxd4 {[%clk 0:02:56]}  c6 {[%clk 0:02:57]} 7. Be3 {[%clk 0:02:56]}  d5 {[%clk 0:02:57]} 8. e5 {[%clk 0:02:55]}  Ng4 {[%clk 0:02:57]} 9. Bg1 {[%clk 0:02:54]}  Bc5 {[%clk 0:02:56]} 10. Qd2 {[%clk 0:02:54]}  Nh6 {[%clk 0:02:55]} 11. O-O-O {[%clk 0:02:44]}  O-O {[%clk 0:02:53]} 12. Bd3 {[%clk 0:02:41]}  b5 {[%clk 0:02:41]} 13. h3 {[%clk 0:02:40]}  b4 {[%clk 0:02:38]} 14. Na4 {[%clk 0:02:36]}  Bxg1 {[%clk 0:02:35]} 15. Rhxg1 {[%clk 0:02:35]}  Qa5 {[%clk 0:02:35]} 16. b3 {[%clk 0:02:07]}  Nb6 {[%clk 0:02:35]} 17. Nxb6 {[%clk 0:01:53]}  Qa3+ {[%clk 0:02:28]} 18. Kb1 {[%clk 0:01:52]}  axb6 {[%clk 0:02:29]} 19. c4 {[%clk 0:01:47]}  bxc3 {[%clk 0:02:28]} 20. Qc2 {[%clk 0:01:47]}  Nf5 {[%clk 0:02:25]} 21. Rde1 {[%clk 0:01:40]}  d4 {[%clk 0:02:23]} 22. Re2 {[%clk 0:01:33]}  Ne3 {[%clk 0:02:19]} 23. Rxe3 {[%clk 0:01:20]}  dxe3 {[%clk 0:02:20]} 24. Bxh7+ {[%clk 0:01:19]}  Kh8 {[%clk 0:02:20]} 25. Be4 {[%clk 0:01:16]}  Rd8 {[%clk 0:02:06]} 26. Re1 {[%clk 0:01:13]}  Be6 {[%clk 0:01:51]} 27. Rxe3 {[%clk 0:00:45]}  Rd1+ {[%clk 0:01:50]} 28. Qxd1 {[%clk 0:00:42]}  Qb2# {[%clk 0:01:49]} 0-1


[Site "https://www.chess.com"]

[Event "Titled Tuesday Blitz August 08 Early 2023"]
[White "Martins, Bruno Andre Leite"]
[Black "Bauman_Guy"]
[WhiteFideId "1942255"]
[WhiteElo "2564"]
[BlackElo "2812"]
[Result "1-0"]
[Round "6"]
[TimeControl "180+1"]
[Date "2023.08.08"]
[WhiteClock "0:00:39"]
[BlackClock "0:00:10"]
[Board "32"]

1. d4 {[%clk 0:02:55]}  Nf6 {[%clk 0:02:59]} 2. g3 {[%clk 0:02:31]}  c5 {[%clk 0:02:58]} 3. dxc5 {[%clk 0:02:31]}  e6 {[%clk 0:02:57]} 4. a3 {[%clk 0:02:30]}  a5 {[%clk 0:02:55]} 5. Bg2 {[%clk 0:02:29]}  Bxc5 {[%clk 0:02:55]} 6. Nf3 {[%clk 0:02:29]}  O-O {[%clk 0:02:55]} 7. O-O {[%clk 0:02:30]}  Nc6 {[%clk 0:02:55]} 8. c4 {[%clk 0:02:30]}  b6 {[%clk 0:02:56]} 9. Nc3 {[%clk 0:02:29]}  Ba6 {[%clk 0:02:56]} 10. b3 {[%clk 0:02:29]}  Rc8 {[%clk 0:02:55]} 11. Bb2 {[%clk 0:02:29]}  Qe7 {[%clk 0:02:55]} 12. e3 {[%clk 0:02:21]}  Rfd8 {[%clk 0:02:55]} 13. Qe2 {[%clk 0:02:12]}  d5 {[%clk 0:02:53]} 14. Nb5 {[%clk 0:02:12]}  dxc4 {[%clk 0:02:38]} 15. bxc4 {[%clk 0:02:07]}  Ne4 {[%clk 0:02:32]} 16. Rfd1 {[%clk 0:01:59]}  Nd6 {[%clk 0:02:31]} 17. Rac1 {[%clk 0:01:54]}  Na7 {[%clk 0:02:22]} 18. a4 {[%clk 0:01:51]}  Nc6 {[%clk 0:02:20]} 19. Nfd4 {[%clk 0:01:50]}  Nb4 {[%clk 0:02:18]} 20. Qg4 {[%clk 0:01:44]}  g6 {[%clk 0:02:12]} 21. Nb3 {[%clk 0:01:37]}  Nf5 {[%clk 0:02:00]} 22. Nxc5 {[%clk 0:01:32]}  Qxc5 {[%clk 0:01:58]} 23. Rxd8+ {[%clk 0:01:23]}  Rxd8 {[%clk 0:01:57]} 24. Qg5 {[%clk 0:01:23]}  Rd2 {[%clk 0:01:49]} 25. Bc3 {[%clk 0:01:21]}  Na2 {[%clk 0:01:19]} 26. Bxd2 {[%clk 0:01:14]}  Nxc1 {[%clk 0:01:19]} 27. Bxc1 {[%clk 0:01:14]}  Qxc4 {[%clk 0:01:18]} 28. Bb2 {[%clk 0:01:14]}  Qd3 {[%clk 0:01:04]} 29. Bf1 {[%clk 0:01:05]}  Qd5 {[%clk 0:00:21]} 30. Qf6 {[%clk 0:00:57]}  Kf8 {[%clk 0:00:20]} 31. Nc7 {[%clk 0:00:57]}  Qd7 {[%clk 0:00:17]} 32. Nxa6 {[%clk 0:00:56]}  h5 {[%clk 0:00:17]} 33. Ba3+ {[%clk 0:00:54]}  Kg8 {[%clk 0:00:17]} 34. Bb2 {[%clk 0:00:54]}  Kf8 {[%clk 0:00:17]} 35. Nb8 {[%clk 0:00:47]}  Qd2 {[%clk 0:00:15]} 36. Qh8+ {[%clk 0:00:38]}  Ke7 {[%clk 0:00:10]} 37. Bf6+ {[%clk 0:00:39]} 1-0


[Site "https://www.chess.com"]